bitfinex/quotes_BTCUSD_20250512
["timestamp","ask_amount","ask_price","bid_price","bid_amount"]
[1747027001590,0.35318261,103910.0,103900.0,0.40688745]
[1747027001901,0.35318261,103910.0,103900.0,0.42989718]
[1747027002494,0.14146122,103910.0,103900.0,0.59505983]
[1747027002640,0.14146122,103910.0,103900.0,1.36200783]
[1747027002843,0.16070762,103910.0,103900.0,1.28936383]
[1747027003048,0.16070762,103910.0,103900.0,0.90706583]
[1747027003231,0.16070762,103910.0,103900.0,0.98329658]
[1747027004246,0.10996104,103910.0,103900.0,0.99939658]
[1747027004420,0.10033798,103910.0,103900.0,1.01589658]
[1747027004657,0.10996095,103910.0,103900.0,1.01589658]
[1747027005252,0.11958401,103910.0,103900.0,1.01589658]
[1747027005429,0.11958401,103910.0,103900.0,0.62777349]
[1747027005630,0.10996095,103910.0,103900.0,0.62777349]
[1747027005843,0.1195841,103910.0,103900.0,0.62777349]
[1747027006681,0.13883086,103910.0,103900.0,0.61127349]
[1747027006935,0.13883086,103910.0,103900.0,0.59517349]
[1747027007360,0.13883086,103910.0,103900.0,0.93517349]
[1747027007605,0.36370511,103910.0,103900.0,0.91240259]
[1747027007852,0.34445899,103910.0,103900.0,0.36252528]
[1747027008576,0.34445899,103910.0,103900.0,0.37214991]
[1747027009001,0.33483575,103910.0,103900.0,0.36252528]
[1747027009449,0.44451575,103910.0,103900.0,0.00913991]
[1747027012428,0.45126268,103910.0,103900.0,0.00913991]
[1747027013483,0.46580353,103910.0,103900.0,0.00913991]
[1747027014851,0.68794868,103910.0,103900.0,0.00913991]
[1747027015059,0.68794868,103910.0,103900.0,0.002]
[1747027015464,0.78380298,103910.0,103900.0,0.00916676]
[1747027015673,0.78380298,103910.0,103900.0,0.002]
[1747027015674,1.03794868,103910.0,103900.0,0.002]
[1747027016326,1.03694868,103910.0,103900.0,0.001]
[1747027016566,0.24360255,103870.0,103860.0,0.002]
[1747027016726,0.44913685,103870.0,103860.0,0.01544518]
[1747027017071,0.44913685,103870.0,103860.0,0.36253715]
[1747027017242,0.44913685,103870.0,103860.0,0.00916664]
[1747027017883,0.45013685,103870.0,103860.0,0.01121506]
[1747027018483,0.45013685,103870.0,103860.0,0.00921506]
[1747027018741,0.44913685,103870.0,103860.0,0.00921506]
[1747027019283,0.45013685,103870.0,103860.0,0.01121506]
[1747027019954,0.45113685,103870.0,103860.0,0.01121506]
[1747027020908,0.672282,103870.0,103860.0,0.00921506]
[1747027021113,0.45013685,103870.0,103860.0,0.00921506]
[1747027021335,0.45013685,103870.0,103860.0,0.01021506]
[1747027021546,0.45213685,103870.0,103860.0,0.01021506]
[1747027021771,0.45113685,103870.0,103860.0,0.00921506]
[1747027022178,0.45513685,103870.0,103860.0,0.01021506]
[1747027023229,0.45813685,103870.0,103860.0,0.01021506]
[1747027024087,0.69482285,103870.0,103860.0,0.01021506]
[1747027024305,1.72553235,103870.0,103860.0,0.01021506]
[1747027024515,1.83138665,103870.0,103860.0,0.01021506]
[1747027025168,1.73153235,103870.0,103860.0,0.00921506]
[1747027025383,1.73753235,103870.0,103860.0,0.01021506]
[1747027026010,1.73253235,103870.0,103860.0,0.01021506]
[1747027026432,1.73753235,103870.0,103860.0,0.01021506]
[1747027032507,2.15327681,103870.0,103860.0,0.01021506]
[1747027035999,1.93113166,103870.0,103860.0,0.01021506]
[1747027036226,2.15327681,103870.0,103860.0,0.01021506]
[1747027037256,1.82145166,103870.0,103860.0,0.01021506]
[1747027037453,1.59121166,103870.0,103860.0,0.01021506]
[1747027037676,1.58121166,103870.0,103860.0,0.01021506]
[1747027037917,1.45691081,103870.0,103860.0,0.01021506]
[1747027038059,1.58121166,103870.0,103860.0,0.01021506]
[1747027038777,1.80335681,103870.0,103860.0,0.01021506]
[1747027038987,1.58121166,103870.0,103860.0,0.01021506]
[1747027041647,1.80335681,103870.0,103860.0,0.01021506]
[1747027043627,1.58121166,103870.0,103860.0,0.01021506]
[1747027045303,1.47145166,103870.0,103860.0,0.01021506]
[1747027045514,1.58137166,103870.0,103860.0,0.01021506]
[1747027049312,1.53495081,103870.0,103860.0,0.01021506]
[1747027050608,1.56555081,103870.0,103860.0,0.01021506]
[1747027054593,1.80223681,103870.0,103860.0,0.01021506]
[1747027055587,1.58009166,103870.0,103860.0,0.01021506]
[1747027055803,1.80223681,103870.0,103860.0,0.01021506]
[1747027064875,1.81223681,103870.0,103860.0,0.01021506]
[1747027065299,2.24809111,103870.0,103860.0,0.01021506]
[1747027065517,2.17925182,103870.0,103860.0,0.01021506]
[1747027066458,2.16925182,103870.0,103860.0,0.01021506]
[1747027069368,1.48525182,103870.0,103860.0,0.01021506]
[1747027071394,1.75739697,103870.0,103860.0,0.01021506]
[1747027071617,1.80739697,103870.0,103860.0,0.01021506]
[1747027074411,0.83002933,103850.0,103840.0,0.002]
[1747027074637,1.14536363,103850.0,103840.0,0.00204842]
[1747027075046,1.15205759,103850.0,103840.0,0.00204842]
[1747027075463,1.15705759,103850.0,103840.0,0.00204842]
[1747027076086,1.16405759,103850.0,103840.0,0.00204842]
[1747027076496,1.16405759,103850.0,103840.0,0.00383852]
[1747027083354,0.94457759,103850.0,103840.0,0.00383852]
[1747027083561,0.90105244,103850.0,103840.0,0.00383852]
[1747027083985,0.91105244,103850.0,103840.0,0.00383852]
[1747027084608,0.90101244,103850.0,103840.0,0.00383852]
[1747027085220,0.91101244,103850.0,103840.0,0.00383852]
[1747027085628,0.90101244,103850.0,103840.0,0.00383852]
[1747027086258,0.91101244,103850.0,103840.0,0.00383852]
[1747027086857,0.90101244,103850.0,103840.0,0.00383852]
[1747027087080,0.79069244,103850.0,103840.0,0.02023852]
[1747027087267,0.90105244,103850.0,103840.0,0.03633852]
[1747027087915,1.31697244,103850.0,103840.0,0.03633852]
[1747027089128,1.31697244,103850.0,103840.0,0.04330276]
[1747027090874,1.31697244,103850.0,103840.0,0.02720276]
[1747027091484,0.97677244,103850.0,103840.0,0.04230276]
[1747027091687,0.97685244,103850.0,103840.0,0.04230276]
[1747027093435,0.86661244,103850.0,103840.0,0.04230276]
[1747027093669,0.97693244,103850.0,103840.0,0.04230276]
[1747027095045,0.86661244,103850.0,103840.0,0.04230276]
[1747027095599,0.96235159,103850.0,103840.0,0.26444791]
[1747027095817,0.43615159,103850.0,103840.0,0.26444791]
[1747027096037,0.43615159,103850.0,103840.0,1.14430783]
[1747027096234,0.43115159,103850.0,103840.0,1.15393756]
[1747027096447,0.42445763,103850.0,103840.0,1.10644783]
[1747027096653,0.40919975,103850.0,103840.0,0.79636211]
[1747027096868,0.40919975,103850.0,103840.0,0.60444791]
[1747027097064,0.40519975,103850.0,103840.0,0.60444791]
[1747027097273,0.39819975,103850.0,103840.0,0.60444791]
[1747027097478,0.40119975,103850.0,103840.0,0.60444791]
[1747027098142,0.40619975,103850.0,103840.0,0.60444791]
[1747027098347,0.40619975,103850.0,103840.0,0.38230276]
[1747027098561,0.41019975,103850.0,103840.0,0.60444791]
[1747027098766,0.41019975,103850.0,103840.0,0.22214515]
[1747027099012,0.41019975,103850.0,103840.0,0.22792567]
[1747027101757,0.41019975,103850.0,103840.0,0.25842567]
[1747027102103,0.30043975,103850.0,103840.0,0.25842567]
[1747027102928,0.30043975,103850.0,103840.0,0.29694647]
[1747027103131,0.31969708,103850.0,103840.0,1.33318441]
[1747027103360,0.32932598,103850.0,103840.0,1.07737541]
[1747027103517,0.32932598,103850.0,103840.0,1.06562041]
[1747027103713,0.32932598,103850.0,103840.0,0.99213041]
[1747027104164,0.32932663,103850.0,103840.0,0.51250941]
[1747027104717,0.32932663,103850.0,103840.0,0.29036426]
[1747027104964,0.31969783,103850.0,103840.0,0.50287959]
[1747027105167,0.31969783,103850.0,103840.0,0.49683341]
[1747027105386,0.12711238,103850.0,103840.0,0.50646296]
[1747027105591,0.1367409,103850.0,103840.0,0.50646296]
[1747027105800,0.1367409,103850.0,103840.0,0.84646314]
[1747027105922,0.14637017,103850.0,103840.0,0.84646314]
[1747027106137,0.12711182,103850.0,103840.0,0.84646314]
[1747027106342,0.1367409,103850.0,103840.0,0.84646314]
[1747027107218,0.14637008,103850.0,103840.0,0.84646314]
[1747027107557,0.33895553,103850.0,103840.0,0.84646314]
[1747027109932,0.31969801,103850.0,103840.0,0.81757367]
[1747027110152,0.31969801,103850.0,103840.0,0.65620677]
[1747027110349,0.31969801,103850.0,103840.0,0.66583678]
[1747027110564,0.31969801,103850.0,103840.0,0.6754667]
[1747027110968,0.31006893,103850.0,103840.0,0.6754667]
[1747027111792,0.30043975,103850.0,103840.0,0.66583678]
[1747027113136,0.30043975,103850.0,103840.0,0.59842567]
[1747027113502,0.30043975,103850.0,103840.0,0.38591072]
[1747027114193,0.30043975,103850.0,103840.0,0.43406162]
[1747027116170,0.30043975,103850.0,103840.0,0.44369163]
[1747027116375,0.30043975,103850.0,103840.0,0.66583678]
[1747027117060,0.30043975,103850.0,103840.0,0.64657667]
[1747027117271,0.30043975,103850.0,103840.0,0.60805587]
[1747027117478,0.30043975,103850.0,103840.0,0.65620677]
[1747027117905,0.30043975,103850.0,103840.0,0.66583678]
[1747027121012,0.30043975,103850.0,103840.0,0.6754667]
[1747027122958,0.30043975,103850.0,103840.0,0.56792567]
[1747027123278,0.30043975,103850.0,103840.0,0.61607667]
[1747027123416,0.30043975,103850.0,103840.0,0.00578052]
[1747027123609,0.33193975,103850.0,103840.0,0.34578052]
[1747027126200,0.33869695,103850.0,103840.0,0.34578052]
[1747027126786,0.2022341,103840.0,103830.0,0.24500973]
[1747027126982,0.2980884,103840.0,103830.0,1.08798017]
[1747027127174,0.2980884,103840.0,103830.0,1.05118017]
[1747027127370,0.2980884,103840.0,103830.0,1.1276291]
[1747027128642,0.2990884,103840.0,103830.0,1.1276291]
[1747027128859,0.2990884,103840.0,103830.0,1.0690691]
[1747027129156,0.2990884,103840.0,103830.0,1.07869976]
[1747027129793,0.3010884,103840.0,103830.0,1.07869976]
[1747027130571,0.3010884,103840.0,103830.0,1.41869976]
[1747027132978,0.3010884,103840.0,103830.0,1.40339976]
[1747027134176,0.3010884,103840.0,103830.0,1.06339976]
[1747027134558,0.3010884,103840.0,103830.0,1.0537691]
[1747027135621,0.3010884,103840.0,103830.0,1.3937691]
[1747027136125,0.3010884,103840.0,103830.0,1.2827931]
[1747027136518,0.3010884,103840.0,103830.0,1.1899951]
[1747027136724,0.3010884,103840.0,103830.0,1.1611961]
[1747027137162,0.3010884,103840.0,103830.0,1.1101501]
[1747027137311,0.3010884,103840.0,103830.0,1.0938501]
[1747027138341,0.1084844,103840.0,103830.0,1.10348057]
[1747027138543,0.31071832,103840.0,103830.0,1.0938501]
[1747027139368,0.31071832,103840.0,103830.0,0.8714065]
[1747027139582,0.31071832,103840.0,103830.0,1.0938501]
[1747027139760,0.31071832,103840.0,103830.0,1.10348076]
[1747027140139,0.31071832,103840.0,103830.0,1.0938501]
[1747027141112,0.31071832,103840.0,103830.0,1.10348076]
[1747027141740,0.10848394,103840.0,103830.0,1.11311123]
[1747027141937,0.01262936,103840.0,103830.0,1.36715483]
[1747027142150,0.003,103840.0,103830.0,1.36715483]
[1747027142352,0.01262936,103840.0,103830.0,1.36715483]
[1747027142703,0.02225891,103840.0,103830.0,1.36715483]
[1747027143383,0.01262936,103840.0,103830.0,1.36715483]
[1747027143556,0.02225881,103840.0,103830.0,1.36715483]
[1747027143767,0.03188845,103840.0,103830.0,1.36715483]
[1747027144037,0.003,103840.0,103830.0,1.36715483]
[1747027146038,0.003,103840.0,103830.0,1.76715483]
[1747027146412,0.00962853,103850.0,103840.0,0.09911027]
[1747027146652,0.41513043,103860.0,103850.0,0.06740406]
[1747027146825,0.51098473,103860.0,103850.0,1.28853338]
[1747027147029,0.51098473,103860.0,103850.0,1.28756695]
[1747027147490,0.50135676,103860.0,103850.0,1.22067658]
[1747027147694,0.4183978,103860.0,103850.0,1.23030529]
[1747027147907,0.4203978,103860.0,103850.0,1.23030529]
[1747027148312,0.0998543,103860.0,103850.0,1.74692962]
[1747027148513,0.004,103860.0,103850.0,1.75655824]
[1747027148930,0.004,103860.0,103850.0,2.15655824]
[1747027150226,0.002,103860.0,103850.0,2.15655824]
[1747027150683,0.001,103860.0,103850.0,2.15755824]
[1747027151121,0.002,103860.0,103850.0,2.15755824]
[1747027152375,0.001,103860.0,103850.0,2.15755824]
[1747027152809,0.0116276,103860.0,103850.0,1.80235291]
[1747027152995,0.01162751,103860.0,103850.0,1.80235291]
[1747027153578,0.0212552,103860.0,103850.0,1.80235291]
[1747027153791,0.02125511,103860.0,103850.0,1.80235291]
[1747027154023,0.01162769,103860.0,103850.0,1.80235291]
[1747027154445,0.002,103860.0,103850.0,1.80235291]
[1747027154670,0.0116276,103860.0,103850.0,1.80235291]
[1747027155147,0.0116276,103860.0,103850.0,1.78725291]
[1747027155790,0.02125538,103860.0,103850.0,1.78725291]
[1747027155961,0.03088326,103860.0,103850.0,1.38772391]
[1747027156741,0.04051123,103860.0,103850.0,1.38772391]
[1747027156946,0.07221123,103860.0,103850.0,1.38772391]
[1747027159385,0.08183939,103860.0,103850.0,1.38772391]
[1747027159638,0.05295538,103860.0,103850.0,1.38772391]
[1747027160683,0.0433276,103860.0,103850.0,1.38772391]
[1747027161339,0.03775538,103860.0,103850.0,1.38772391]
[1747027161765,0.0116276,103860.0,103850.0,1.38772391]
[1747027161995,0.02125529,103860.0,103850.0,1.38772391]
[1747027162166,0.002,103860.0,103850.0,1.38772391]
[1747027162415,0.01162751,103860.0,103850.0,1.38772391]
[1747027163634,0.02125511,103860.0,103850.0,1.38772391]
[1747027164087,0.002,103860.0,103850.0,1.38772391]
[1747027164278,0.0116276,103860.0,103850.0,1.38772391]
[1747027164666,0.01162751,103860.0,103850.0,1.38772391]
[1747027165033,0.0212552,103860.0,103850.0,1.38772391]
[1747027166687,0.03088308,103860.0,103850.0,1.38772391]
[1747027166909,0.0362552,103860.0,103850.0,1.38772391]
[1747027167127,0.04588308,103860.0,103850.0,1.38772391]
[1747027167308,0.0362552,103860.0,103850.0,1.38772391]
[1747027167662,0.06218298,103860.0,103850.0,1.38772391]
[1747027170168,0.06218298,103860.0,103850.0,1.27704391]
[1747027172534,0.0525552,103860.0,103850.0,1.27704391]
[1747027172735,0.06218308,103860.0,103850.0,1.27704391]
[1747027172937,0.0525552,103860.0,103850.0,1.27704391]
[1747027175817,0.002,103860.0,103850.0,1.27704391]
[1747027176038,0.002,103860.0,103850.0,1.42296824]
[1747027176244,0.0116276,103860.0,103850.0,1.42296824]
[1747027176800,0.01162751,103860.0,103850.0,1.42296824]
[1747027177414,0.002,103860.0,103850.0,1.42296824]
[1747027179460,0.002,103860.0,103850.0,1.27704391]
[1747027179654,0.002,103860.0,103850.0,1.28748292]
[1747027179864,0.0326,103860.0,103850.0,1.27704391]
[1747027182909,0.017,103860.0,103850.0,1.27704391]
[1747027184438,0.017,103860.0,103850.0,1.42296824]
[1747027184439,0.002,103860.0,103850.0,1.42296824]
[1747027184690,0.002,103860.0,103850.0,1.27704391]
[1747027184901,0.01162751,103860.0,103850.0,1.42296824]
[1747027185082,0.002,103860.0,103850.0,1.42296824]
[1747027185237,0.01162751,103860.0,103850.0,1.42296824]
[1747027185798,0.02125511,103860.0,103850.0,1.27704391]
[1747027185951,0.02125511,103860.0,103850.0,1.42296824]
[1747027186384,0.02125511,103860.0,103850.0,1.27704391]
[1747027186584,0.03625511,103860.0,103850.0,1.27704391]
[1747027187034,0.03625511,103860.0,103850.0,1.28166702]
[1747027187827,0.05185511,103860.0,103850.0,1.28166702]
[1747027187983,0.0614828,103860.0,103850.0,1.28166702]
[1747027188190,0.07111058,103860.0,103850.0,1.28166702]
[1747027188885,0.08073855,103860.0,103850.0,1.28166702]
[1747027189086,0.07111058,103860.0,103850.0,1.28166702]
[1747027190683,0.08073855,103860.0,103850.0,1.28166702]
[1747027190883,0.07111058,103860.0,103850.0,1.28166702]
[1747027192110,0.05185511,103860.0,103850.0,1.28166702]
[1747027192306,0.02662751,103860.0,103850.0,1.28166702]
[1747027192519,0.0362552,103860.0,103850.0,1.28166702]
[1747027194330,0.0524552,103860.0,103850.0,1.28166702]
[1747027194483,0.04282751,103860.0,103850.0,1.28166702]
[1747027196573,0.0524552,103860.0,103850.0,1.28166702]
[1747027196978,0.04282751,103860.0,103850.0,1.28166702]
[1747027197594,0.0524552,103860.0,103850.0,1.28166702]
[1747027197983,0.04282751,103860.0,103850.0,1.28166702]
[1747027199547,0.0332,103860.0,103850.0,1.28166702]
[1747027200523,0.04282769,103860.0,103850.0,1.28166702]
[1747027202041,0.05245547,103860.0,103850.0,1.28166702]
[1747027202238,0.04282769,103860.0,103850.0,1.28166702]
[1747027203410,0.0332,103860.0,103850.0,1.28166702]
[1747027203770,0.0428276,103860.0,103850.0,1.28166702]
[1747027204841,0.0332,103860.0,103850.0,1.28166702]
[1747027205013,0.04282751,103860.0,103850.0,1.28166702]
[1747027205436,0.0524552,103860.0,103850.0,1.28166702]
[1747027206209,0.04282751,103860.0,103850.0,1.28166702]
[1747027206889,0.0524552,103860.0,103850.0,1.28166702]
[1747027207100,0.05245511,103860.0,103850.0,1.28166702]
[1747027209353,0.06208289,103860.0,103850.0,1.28166702]
[1747027209498,0.04282751,103860.0,103850.0,1.23421602]
[1747027213711,0.0332,103860.0,103850.0,1.23421602]
[1747027214953,0.0428276,103860.0,103850.0,1.23421602]
[1747027215207,0.0332,103860.0,103850.0,1.23421602]
[1747027215880,0.04282751,103860.0,103850.0,1.23421602]
[1747027216139,0.0332,103860.0,103850.0,1.23421602]
[1747027218229,0.0428276,103860.0,103850.0,1.23421602]
[1747027218434,0.05245529,103860.0,103850.0,1.23421602]
[1747027218650,0.0428276,103860.0,103850.0,1.23421602]
[1747027219446,0.05245529,103860.0,103850.0,1.23421602]
[1747027220479,0.16756581,103860.0,103850.0,0.64977647]
[1747027220681,0.42670648,103860.0,103850.0,0.55614047]
[1747027221041,0.40745082,103860.0,103850.0,0.50799411]
[1747027221275,0.40745082,103860.0,103850.0,0.34562311]
[1747027221496,0.40745082,103860.0,103850.0,0.39376938]
[1747027224061,0.40745082,103860.0,103850.0,0.00562311]
[1747027225136,0.41420198,103860.0,103850.0,0.00562311]
[1747027226324,0.33800062,103860.0,103850.0,0.00562311]
[1747027227201,0.33124946,103860.0,103850.0,0.00562311]
[1747027228096,0.33124946,103860.0,103840.0,0.54370381]
[1747027228097,0.0614867,103850.0,103840.0,0.203704]
[1747027228309,0.15734174,103850.0,103840.0,0.22296355]
[1747027229202,0.15834174,103850.0,103840.0,0.22296355]
[1747027229572,0.15934174,103850.0,103840.0,0.22496355]
[1747027229772,0.16897054,103850.0,103840.0,0.22496355]
[1747027230821,0.17759925,103850.0,103840.0,0.22296355]
[1747027231159,0.1583408,103850.0,103840.0,0.22396355]
[1747027231357,0.16796988,103850.0,103840.0,1.13965855]
[1747027231575,0.17859906,103850.0,103840.0,1.13965855]
[1747027231706,0.17859906,103850.0,103840.0,1.47965855]
[1747027232423,0.15934025,103850.0,103840.0,1.62558288]
[1747027232667,0.14971135,103850.0,103840.0,1.62558288]
[1747027232857,0.15934015,103850.0,103840.0,1.62558288]
[1747027233494,0.16896905,103850.0,103840.0,1.62558288]
[1747027233710,0.17859813,103850.0,103840.0,0.68447955]
[1747027234132,0.17859813,103850.0,103840.0,0.53855522]
[1747027234343,0.17859888,103850.0,103840.0,0.68447955]
[1747027234543,0.351927,103850.0,103840.0,0.65559091]
[1747027234746,0.351927,103850.0,103840.0,0.66522064]
[1747027234955,0.36155627,103850.0,103840.0,0.67485046]
[1747027235165,0.36155627,103850.0,103840.0,0.6844801]
[1747027235410,0.36155627,103850.0,103840.0,0.66847846]
[1747027235825,0.36155627,103850.0,103840.0,0.6781081]
[1747027236239,0.36155627,103850.0,103840.0,0.66847846]
[1747027237827,0.33266902,103850.0,103840.0,0.4518402]
[1747027238036,0.33266902,103850.0,103840.0,0.49999101]
[1747027238445,0.33266902,103850.0,103840.0,0.4999911]
[1747027238799,0.33266902,103850.0,103840.0,0.65554544]
[1747027239208,0.33266902,103850.0,103840.0,0.31554544]
[1747027239813,0.33266902,103850.0,103840.0,0.32517536]
[1747027240231,0.33266902,103850.0,103840.0,0.17925103]
[1747027240437,0.33266902,103850.0,103840.0,0.32517536]
[1747027241114,0.33266902,103850.0,103840.0,0.33480518]
[1747027242892,0.33266902,103850.0,103840.0,0.32517536]
[1747027245349,0.33266902,103850.0,103840.0,0.33480518]
[1747027245548,0.14971144,103850.0,103840.0,0.48072886]
[1747027245807,0.12674006,103850.0,103840.0,0.48072886]
[1747027245940,0.11711126,103850.0,103840.0,0.48072886]
[1747027246143,0.13636905,103850.0,103840.0,0.48072886]
[1747027246633,0.13636887,103850.0,103840.0,0.48072886]
[1747027247454,0.13636896,103850.0,103840.0,0.48072886]
[1747027247626,0.15186896,103850.0,103840.0,0.48072886]
[1747027247773,0.16149804,103850.0,103840.0,0.48072886]
[1747027247980,0.17709804,103850.0,103840.0,0.48072886]
[1747027248778,0.17709804,103850.0,103840.0,0.33480453]
[1747027249459,0.3600558,103850.0,103840.0,0.22396498]
[1747027249661,0.35042709,103850.0,103840.0,0.160451]
[1747027249807,0.32153975,103850.0,103840.0,0.001]
[1747027251021,0.223704,103840.0,103830.0,0.57481668]
[1747027251279,0.223704,103840.0,103830.0,1.28319734]
[1747027252521,0.25359348,103840.0,103830.0,1.28419734]
[1747027252671,0.25359348,103840.0,103830.0,1.28419752]
[1747027252880,0.34081823,103840.0,103830.0,0.94407]
[1747027253083,0.33118831,103840.0,103830.0,0.421725]
[1747027253657,0.33118831,103840.0,103830.0,0.001]
[1747027254885,0.33118831,103840.0,103830.0,0.14692433]
[1747027255214,0.33118831,103840.0,103830.0,0.001]
[1747027255215,0.40738967,103840.0,103830.0,0.001]
[1747027256072,0.39554754,103840.0,103830.0,0.001]
[1747027256501,0.31934618,103840.0,103830.0,0.001]
[1747027259618,0.31934618,103840.0,103830.0,0.14692433]
[1747027266329,0.31934618,103840.0,103830.0,0.001]
[1747027267904,0.31934618,103840.0,103830.0,0.14692433]
[1747027269750,0.31934618,103840.0,103830.0,0.001]
[1747027273242,0.31934618,103840.0,103830.0,0.14692433]
[1747027276771,0.31934618,103840.0,103830.0,0.001]
[1747027279403,0.30971617,103840.0,103830.0,0.14592433]
[1747027279819,0.42315617,103840.0,103830.0,0.14592433]
[1747027281762,0.20225367,103830.0,103820.0,0.16379861]
[1747027281970,0.29810797,103830.0,103820.0,1.31711932]
[1747027282825,0.30773891,103830.0,103820.0,1.31711932]
[1747027283056,0.30873891,103830.0,103820.0,1.20336132]
[1747027283266,0.30873891,103830.0,103820.0,1.06078132]
[1747027283470,0.30873891,103830.0,103820.0,0.5142287]
[1747027283681,0.32513891,103830.0,103820.0,0.36320884]
[1747027283893,0.34173891,103830.0,103820.0,0.37284089]
[1747027284110,0.34173891,103830.0,103820.0,0.35710471]
[1747027284907,0.34173891,103830.0,103820.0,0.36673648]
[1747027285108,0.32613891,103830.0,103820.0,0.37636816]
[1747027285946,0.32613891,103830.0,103820.0,0.52229249]
[1747027288552,0.32613891,103830.0,103820.0,0.52624667]
[1747027288757,0.32613891,103830.0,103820.0,0.51661499]
[1747027289161,0.32613891,103830.0,103820.0,0.22476633]
[1747027289393,0.32613891,103830.0,103820.0,0.51661499]
[1747027289550,0.32613891,103830.0,103820.0,0.52624667]
[1747027289979,0.32613891,103830.0,103820.0,0.22476633]
[1747027290163,0.34253891,103830.0,103820.0,0.51661499]
[1747027291256,0.34253891,103830.0,103820.0,0.52624667]
[1747027291680,0.34253891,103830.0,103820.0,0.22476633]
[1747027291903,0.33290797,103830.0,103820.0,0.36105889]
[1747027292345,0.32327685,103830.0,103820.0,0.32720989]
[1747027292754,0.32327685,103830.0,103820.0,0.33684166]
[1747027292949,0.32327685,103830.0,103820.0,0.34647288]
[1747027293175,0.33290779,103830.0,103820.0,0.34647288]
[1747027293851,0.33290779,103830.0,103820.0,0.33684129]
[1747027294007,0.33290779,103830.0,103820.0,0.49239721]
[1747027294222,0.31650779,103830.0,103820.0,0.49239721]
[1747027295090,0.30010779,103830.0,103820.0,0.49239721]
[1747027296977,0.30010779,103830.0,103820.0,0.48276562]
[1747027297579,0.30010779,103830.0,103820.0,0.49239711]
[1747027297842,0.30010779,103830.0,103820.0,0.48276562]
[1747027298239,0.30010779,103830.0,103820.0,0.49239721]
[1747027299597,0.11711534,103830.0,103820.0,0.49239665]
[1747027299798,0.10748468,103830.0,103820.0,0.49239665]
[1747027299957,0.11711525,103830.0,103820.0,0.49239665]
[1747027300368,0.12674591,103830.0,103820.0,0.49239665]
[1747027300940,0.13637666,103830.0,103820.0,0.89239665]
[1747027301596,0.1460076,103830.0,103820.0,0.89239665]
[1747027301800,0.1614076,103830.0,103820.0,0.89239665]
[1747027301999,0.1614076,103830.0,103820.0,0.74647232]
[1747027303003,0.15177666,103830.0,103820.0,0.74647232]
[1747027303198,0.13637666,103830.0,103820.0,0.74647232]
[1747027303415,0.1460075,103830.0,103820.0,0.89239665]
[1747027304323,0.12674628,103830.0,103820.0,0.89239665]
[1747027304501,0.13637722,103830.0,103820.0,0.89239665]
[1747027307056,0.13637722,103830.0,103820.0,0.74647232]
[1747027307917,0.13637712,103830.0,103820.0,0.74647232]
[1747027308330,0.14600806,103830.0,103820.0,0.74647232]
[1747027308934,0.16170806,103830.0,103820.0,0.74647232]
[1747027309745,0.16170806,103830.0,103820.0,0.60054799]
[1747027309953,0.17740806,103830.0,103820.0,0.74647232]
[1747027310154,0.17740806,103830.0,103820.0,0.34647232]
[1747027310769,0.17740806,103830.0,103820.0,0.74647232]
[1747027313682,0.17740806,103830.0,103820.0,0.34647232]
[1747027314213,0.17740806,103830.0,103820.0,0.74647232]
[1747027315573,0.17740852,103830.0,103820.0,0.74647232]
[1747027317107,0.17740852,103830.0,103820.0,0.34647232]
[1747027317723,0.17740852,103830.0,103820.0,0.74647232]
[1747027318753,0.15814655,103830.0,103820.0,0.74647232]
[1747027319000,0.16777749,103830.0,103820.0,0.74647232]
[1747027319528,0.16777749,103830.0,103820.0,0.73684092]
[1747027319738,0.3604005,103830.0,103820.0,0.73684092]
[1747027319947,0.3604005,103830.0,103820.0,0.88276525]
[1747027320175,0.13637795,103830.0,103820.0,0.89239674]
[1747027320395,0.3290005,103830.0,103820.0,0.87313339]
[1747027321039,0.3290005,103830.0,103820.0,0.88276488]
[1747027321243,0.13637786,103830.0,103820.0,0.89239628]
[1747027321456,0.14600898,103830.0,103820.0,0.89239628]
[1747027321640,0.15197823,103830.0,103820.0,0.88276488]
[1747027321775,0.12308487,103830.0,103820.0,0.89239628]
[1747027321991,0.002,103830.0,103820.0,0.86479628]
[1747027322423,0.002,103830.0,103820.0,1.26479628]
[1747027322634,0.01163038,103830.0,103820.0,1.26479628]
[1747027322844,0.02126104,103830.0,103820.0,1.21599195]
[1747027323088,0.02126104,103830.0,103820.0,1.05366762]
[1747027323361,0.02126104,103830.0,103820.0,1.19959195]
[1747027324334,0.03089188,103830.0,103820.0,1.19959195]
[1747027324550,0.02126104,103830.0,103820.0,1.19959195]
[1747027324746,0.03636095,103830.0,103820.0,1.19959195]
[1747027325237,0.03636085,103830.0,103820.0,1.19959195]
[1747027325455,0.02126085,103830.0,103820.0,1.34551628]
[1747027326009,0.03089142,103830.0,103820.0,1.34551628]
[1747027326452,0.03089142,103830.0,103820.0,1.19959195]
[1747027326844,0.03089142,103830.0,103820.0,1.08647195]
[1747027327024,0.05562208,103830.0,103820.0,1.08647195]
[1747027327214,0.07082208,103830.0,103820.0,1.08647195]
[1747027327869,0.07082208,103830.0,103820.0,1.23239628]
[1747027328085,0.07082208,103830.0,103820.0,0.83239628]
[1747027328915,0.07082208,103830.0,103820.0,0.85239628]
[1747027329288,0.06119142,103830.0,103820.0,0.85239628]
[1747027329812,0.06982217,103830.0,103820.0,0.85239628]
[1747027330022,0.06019142,103830.0,103820.0,0.85239628]
[1747027330484,0.06982217,103830.0,103820.0,0.85239628]
[1747027330700,0.07945311,103830.0,103820.0,0.85239628]
[1747027330903,0.06982217,103830.0,103820.0,0.85239628]
[1747027331051,0.07945301,103830.0,103820.0,0.85239628]
[1747027331457,0.07945357,103830.0,103820.0,0.85239628]
[1747027331706,0.26244565,103830.0,103820.0,0.52128473]
[1747027331908,0.34866938,103830.0,103820.0,0.66720896]
[1747027332108,0.34866938,103830.0,103820.0,1.06720896]
[1747027332539,0.34866938,103830.0,103820.0,1.05757747]
[1747027332748,0.34866938,103830.0,103820.0,0.91165314]
[1747027332954,0.33903863,103830.0,103820.0,1.05757793]
[1747027333171,0.31977685,103830.0,103820.0,0.99978589]
[1747027333390,0.31977685,103830.0,103820.0,0.34400256]
[1747027333800,0.31977685,103830.0,103820.0,0.00400256]
[1747027333801,0.58110118,103830.0,103820.0,0.00400256]
[1747027334442,1.26510118,103830.0,103820.0,0.00400256]
[1747027334887,1.27184145,103830.0,103820.0,0.00400256]
[1747027335093,1.2863823,103830.0,103820.0,0.00400256]
[1747027335325,1.13945797,103830.0,103820.0,0.00400256]
[1747027335447,1.2873823,103830.0,103820.0,0.00500256]
[1747027335651,1.15574878,103830.0,103820.0,0.00500256]
[1747027335868,1.30167311,103830.0,103820.0,0.00500256]
[1747027336050,1.15574878,103830.0,103820.0,0.00500256]
[1747027336268,1.15874878,103830.0,103820.0,0.00500256]
[1747027336674,1.30367311,103830.0,103820.0,0.00400256]
[1747027337056,1.30567311,103830.0,103820.0,0.00400256]
[1747027337525,1.15974878,103830.0,103820.0,0.00400256]
[1747027338045,1.30567311,103830.0,103820.0,0.00400256]